fUSD/lending_fUSD_20240930
["ID","MTS","AMOUNT","RATE_DAILY","PERIOD"]
[339603327,1727729447667,-500.0,0.00012899,2]
[339603328,1727729447676,-500.0,0.00012899,2]
[339603329,1727729447686,-500.0,0.00012899,2]
[339603330,1727729447695,-522.69128881,0.00012899,2]
[339603331,1727729447705,-2661.63,0.00012899,2]
[339603332,1727729447714,-2661.63,0.00012899,2]
[339603333,1727729447724,-2661.63,0.00012899,2]
[339603334,1727729447734,-2661.63,0.00012899,2]
[339603335,1727729447744,-2661.63,0.00012899,2]
[339603336,1727729447754,-2661.63,0.00012899,2]
[339603337,1727729447763,-2661.63,0.00012899,2]
[339603338,1727729447773,-2661.63,0.00012899,2]
[339603339,1727729447783,-2661.63,0.00012899,2]
[339603340,1727729447792,-2661.63,0.00012899,2]
[339603341,1727729447802,-998.56,0.00012899,2]
[339603342,1727729447815,-2661.63,0.00012899,2]
[339603343,1727729447826,-2661.63,0.00012899,2]
[339603344,1727729447836,-2661.63,0.00012899,2]
[339603345,1727729447846,-998.56,0.00012899,2]
[339603346,1727729447857,-998.56,0.00012899,2]
[339603347,1727729447867,-998.56,0.00012899,2]
[339603348,1727729447876,-2661.63,0.00012899,2]
[339603349,1727729447887,-998.56,0.00012899,2]
[339603350,1727729447897,-2661.63,0.00012899,2]
[339603351,1727729447907,-998.56,0.00012899,2]
[339603352,1727729447916,-2661.63,0.00012899,2]
[339603353,1727729447926,-998.56,0.00012899,2]
[339603354,1727729447935,-2661.63,0.00012899,2]
[339603355,1727729447945,-998.56,0.00012899,2]
[339603356,1727729447954,-998.56,0.00012899,2]
[339603357,1727729447964,-998.56,0.00012899,2]
[339603358,1727729447975,-998.56,0.00012899,2]
[339603359,1727729447984,-998.56,0.00012899,2]
[339603360,1727729447994,-998.56,0.00012899,2]
[339603361,1727729448003,-998.56,0.00012899,2]
[339603362,1727729448013,-998.56,0.00012899,2]
[339603363,1727729448023,-998.56,0.00012899,2]
[339603364,1727729448033,-998.56,0.00012899,2]
[339603365,1727729448043,-998.63107612,0.00012899,2]
[339603366,1727729448053,-1055.68,0.00012899,2]
[339603367,1727729448063,-500.0,0.00012899,2]
[339603368,1727729448074,-1055.68,0.00012899,2]
[339603369,1727729448084,-500.0,0.00012899,2]
[339603370,1727729448095,-1055.68,0.00012899,2]
[339603371,1727729448105,-500.0,0.00012899,2]
[339603372,1727729448114,-500.0,0.00012899,2]
[339603373,1727729448124,-1055.68,0.00012899,2]
[339603374,1727729448273,-500.0,0.00012899,2]
[339603375,1727729448283,-1055.68,0.00012899,2]
[339603376,1727729448292,-500.0,0.00012899,2]
[339603377,1727729448301,-1055.68,0.00012899,2]
[339603378,1727729448311,-1055.68,0.00012899,2]
[339603379,1727729448320,-500.0,0.00012899,2]
[339603380,1727729448330,-500.0,0.00012899,2]
[339603381,1727729448339,-1055.68,0.00012899,2]
[339603382,1727729448349,-500.0,0.00012899,2]
[339603383,1727729448359,-500.0,0.00012899,2]
[339603384,1727729448369,-1055.68,0.00012899,2]
[339603385,1727729448378,-500.0,0.00012899,2]
[339603386,1727729448388,-1055.68,0.00012899,2]
[339603387,1727729448397,-500.0,0.00012899,2]
[339603388,1727729448407,-1055.68,0.00012899,2]
[339603389,1727729448416,-500.0,0.00012899,2]
[339603390,1727729448426,-1055.68,0.00012899,2]
[339603391,1727729448435,-500.0,0.00012899,2]
[339603392,1727729448446,-1055.68,0.00012899,2]
[339603393,1727729448455,-500.0,0.00012899,2]
[339603394,1727729448464,-1055.68,0.00012899,2]
[339603395,1727729448474,-500.0,0.00012899,2]
[339603396,1727729448483,-1055.68,0.00012899,2]
[339603397,1727729448492,-500.0,0.00012899,2]
[339603398,1727729448501,-485.94596415,0.00012899,2]
[339603399,1727729448511,-500.0,0.00012899,2]
[339603400,1727729448519,-500.0,0.00012899,2]
[339603401,1727729448529,-1055.68,0.00012899,2]
[339603402,1727729448539,-500.0,0.00012899,2]
[339603403,1727729448548,-1055.79005918,0.00012899,2]
[339603404,1727729448557,-500.0,0.00012899,2]
[339603405,1727729448567,-500.0,0.00012899,2]
[339603406,1727729448577,-500.0,0.00012899,2]
[339603407,1727729448586,-320.73217573,0.00012899,2]
[339603408,1727729448595,-1293.63,0.00012899,2]
[339603409,1727729448605,-1293.63,0.00012899,2]
[339603410,1727729448614,-1293.63,0.00012899,2]
[339603411,1727729448624,-580.76,0.00012899,2]
[339603412,1727729448633,-1293.63,0.00012899,2]
[339603413,1727729448643,-580.76,0.00012899,2]
[339603414,1727729448652,-1293.63,0.00012899,2]
[339603415,1727729448661,-580.76,0.00012899,2]
[339603416,1727729448669,-1293.63,0.00012899,2]
[339603417,1727729448679,-580.76,0.00012899,2]
[339603418,1727729448688,-1293.63,0.00012899,2]
[339603419,1727729448697,-580.76,0.00012899,2]
[339603420,1727729448706,-1293.63,0.00012899,2]
[339603421,1727729448715,-580.76,0.00012899,2]
[339603422,1727729448724,-1293.63,0.00012899,2]
[339603423,1727729448734,-580.76,0.00012899,2]
[339603424,1727729448743,-1293.63,0.00012899,2]
[339603425,1727729448752,-580.76,0.00012899,2]
[339603426,1727729448761,-720.66,0.00012899,2]
[339603427,1727729448770,-580.76,0.00012899,2]
[339603428,1727729448779,-720.66,0.00012899,2]
[339603429,1727729448788,-1293.63,0.00012899,2]
[339603430,1727729448797,-580.76,0.00012899,2]
[339603431,1727729448806,-720.66,0.00012899,2]
[339603432,1727729448819,-1293.63,0.00012899,2]
[339603433,1727729448829,-580.76,0.00012899,2]
[339603434,1727729448838,-720.66,0.00012899,2]
[339603435,1727729448847,-1293.63,0.00012899,2]
[339603436,1727729448858,-720.66,0.00012899,2]
[339603437,1727729448867,-1293.63,0.00012899,2]
[339603438,1727729448876,-580.76,0.00012899,2]
[339603439,1727729448887,-720.66,0.00012899,2]
[339603440,1727729448896,-1293.63,0.00012899,2]
[339603441,1727729448905,-720.66,0.00012899,2]
[339603442,1727729448914,-580.76,0.00012899,2]
[339603443,1727729448924,-1293.63,0.00012899,2]
[339603444,1727729448933,-720.66,0.00012899,2]
[339603445,1727729448943,-580.76,0.00012899,2]
[339603446,1727729448953,-1293.72614248,0.00012899,2]
[339603447,1727729448962,-720.66,0.00012899,2]
[339603448,1727729448971,-580.76,0.00012899,2]
[339603449,1727729448981,-720.66,0.00012899,2]
[339603450,1727729448990,-580.76,0.00012899,2]
[339603451,1727729448999,-720.66,0.00012899,2]
[339603452,1727729449009,-580.82970128,0.00012899,2]
[339603453,1727729449017,-720.66,0.00012899,2]
[339603454,1727729449027,-720.66,0.00012899,2]
[339603455,1727729449036,-720.66,0.00012899,2]
[339603456,1727729449045,-720.66,0.00012899,2]
[339603457,1727729449054,-720.66,0.00012899,2]
[339603458,1727729449063,-720.66949864,0.00012899,2]
[339603459,1727729449072,-500.0,0.00012899,2]
[339603460,1727729449082,-500.0,0.00012899,2]
[339603461,1727729449091,-500.0,0.00012899,2]
[339603462,1727729449100,-500.0,0.00012899,2]
[339603463,1727729449110,-500.0,0.00012899,2]
[339603464,1727729449119,-500.0,0.00012899,2]
[339603465,1727729449128,-500.0,0.00012899,2]
[339603466,1727729449137,-500.0,0.00012899,2]
[339603467,1727729449146,-500.0,0.00012899,2]
[339603468,1727729449155,-500.0,0.00012899,2]
[339603469,1727729449164,-500.0,0.00012899,2]
[339603470,1727729449174,-4498.26,0.00012899,2]
[339603471,1727729449184,-500.0,0.00012899,2]
[339603472,1727729449193,-4498.26,0.00012899,2]
[339603473,1727729449202,-500.0,0.00012899,2]
[339603474,1727729449211,-4498.26,0.00012899,2]
[339603475,1727729449221,-500.0,0.00012899,2]
[339603476,1727729449230,-4498.26,0.00012899,2]
[339603477,1727729449240,-338.06995374,0.00012899,2]
[339603478,1727729449250,-4498.26,0.00012899,2]
[339603479,1727729449259,-4498.26,0.00012899,2]
[339603480,1727729449268,-4498.26,0.00012899,2]
[339603481,1727729449277,-4498.26,0.00012899,2]
[339603482,1727729449286,-4498.26,0.00012899,2]
[339603483,1727729449295,-4498.26,0.00012899,2]
[339603484,1727729449304,-4498.26,0.00012899,2]
[339603485,1727729449314,-4498.26,0.00012899,2]
[339603486,1727729449325,-4498.26,0.00012899,2]
[339603487,1727729449334,-4498.26,0.00012899,2]
[339603488,1727729449343,-4498.26,0.00012899,2]
[339603489,1727729449354,-4498.26,0.00012899,2]
[339603490,1727729449363,-4498.48002611,0.00012899,2]
[339603491,1727729449373,-1567.85093434,0.000129,2]
[339603492,1727729449383,-339752.67584376,0.000129,2]
[339603493,1727729449392,-1062.23786489,0.000129,2]
[339603494,1727729449468,-463.99900633,0.000129,2]
[339603495,1727729449479,-999.99999999,0.000129,2]
[339603496,1727729449491,-25248.69888996,0.000129,2]
[339603497,1727729449502,-11216.25702667,0.000129,2]
[339603498,1727729449513,-12612.34474342,0.000129,2]
[339603499,1727729449524,-1001.43341987,0.000129,2]
[339603500,1727729449756,-5993.00693741,0.000129,2]
[339603501,1727729449782,-63847.23426068,0.000129,2]
[339603502,1727729449793,-862.12443823,0.000129,2]
[339603503,1727729449804,-1276.66,0.000129,2]
[339603504,1727729449834,-3203.4579,0.000129,2]
[339603505,1727729449845,-1309.5,0.000129,2]
[339603506,1727729699471,504.0,9.706e-05,2]
[339603507,1727729845456,30679.50805506,0.0001,2]
[339603508,1727730114660,288.6,9.704e-05,2]
[339603526,1727730631921,-162.19,0.00010959,2]
[339603527,1727730631931,-1050.0,0.00011,2]
[339603528,1727730631940,-184.44822387,0.0001144,2]
[339603529,1727730631949,-1007.62,0.0001154,2]
[339603530,1727730631959,-300.0,0.00011588,2]
[339603531,1727730631968,-150.0,0.00011589,2]
[339603532,1727730631976,-250.0,0.00011598,2]
[339603533,1727730631985,-406.54,0.00011598,2]
[339603534,1727730631996,-416.47,0.00011616,2]
[339603535,1727730632005,-183.78,0.00011616,2]
[339603536,1727730632014,-250.0,0.00011619,2]
[339603537,1727730632023,-250.0,0.00011624,2]
[339603538,1727730632033,-243.5,0.00011633,2]
[339603539,1727730632042,-166.02,0.00011635,2]
[339603540,1727730632051,-288.6,0.00011968,2]
[339603541,1727730632060,-259.39848917,0.00012,2]
[339603542,1727730632069,-192.24,0.00012183,2]
[339603543,1727730632079,-248.5294,0.00012199,2]
[339603544,1727730632088,-1000.0,0.00012299,2]
[339603545,1727730632097,-2864.4158,0.000124,2]
[339603546,1727730632106,-167.46,0.00012445,2]
[339603547,1727730632116,-176.264988,0.00012493,2]
[339603548,1727730632125,-150.0,0.00012499,2]
[339603549,1727730632135,-77162.58,0.000125,2]
[339603550,1727730632144,-998.5,0.000125,2]
[339603551,1727730632153,-179.248,0.00012619,2]
[339603552,1727730632162,-475.723,0.00012619,2]
[339603553,1727730632172,-420.0,0.00012726,2]
[339603554,1727730632181,-180.0,0.00012742,2]
[339603555,1727730632191,-2448.04033939,0.00012744,2]
[339603556,1727730632200,-2448.04033935,0.0001275,2]
[339603558,1727730632210,-2448.04033935,0.00012756,2]
[339603560,1727730632219,-2448.04033935,0.00012763,2]
[339603562,1727730632229,-2448.04033935,0.00012769,2]
[339603564,1727730632238,-2448.04033935,0.00012775,2]
[339603566,1727730632247,-5821.5306,0.00012776,2]
[339603568,1727730632257,-2981.3747,0.00012776,2]
[339603570,1727730632266,-764.7797,0.00012776,2]
[339603572,1727730632275,-2979.5788,0.00012776,2]
[339603574,1727730632290,-2448.04033935,0.00012781,2]
[339603576,1727730632299,-2448.04033935,0.00012788,2]
[339603578,1727730632308,-2448.04033935,0.00012794,2]
[339603580,1727730632318,-150.0,0.00012795,2]
[339603582,1727730632327,-500.0,0.00012796,2]
[339603584,1727730632336,-500.0,0.00012797,2]
[339603586,1727730632348,-7240.8147,0.00012798,2]
[339603588,1727730632359,-2500.0,0.00012799,2]
[339603591,1727730632371,-1642.038483,0.000128,2]
[339603593,1727730632383,-364.0708,0.000128,2]
[339603595,1727730632394,-168.66286001,0.000128,2]
[339603597,1727730632406,-188.90231541,0.000128,2]
[339603600,1727730632417,-2448.04033935,0.000128,2]
[339603602,1727730632428,-352.2339743,0.000128,2]
[339603604,1727730632438,-647.69289835,0.000128,2]
[339603606,1727730632448,-423.72503581,0.000128,2]
[339603608,1727730632458,-1000.0,0.000128,2]
[339603610,1727730632468,-1167.51973564,0.000128,2]
[339603612,1727730632480,-164.67766966,0.000128,2]
[339603615,1727730632491,-210.77847826,0.000128,2]
[339603617,1727730632502,-150.0,0.00012844,2]
[339603619,1727730632512,-150.0,0.00012845,2]
[339603621,1727730632523,-150.0,0.00012846,2]
[339603623,1727730632533,-150.0,0.00012847,2]
[339603625,1727730632544,-150.0,0.00012848,2]
[339603628,1727730632555,-151.7,0.0001289,2]
[339603630,1727730632566,-151.7,0.0001289,2]
[339603632,1727730632577,-162.3,0.00012893,2]
[339603634,1727730632588,-1984.91,0.00012898,2]
[339603636,1727730632600,-919.13,0.00012898,2]
[339603639,1727730632610,-189.23522239,0.00012899,2]
[339603641,1727730632622,-924.225018,0.00012899,2]
[339603643,1727730632633,-187.91887616,0.00012899,2]
[339603645,1727730632643,-1984.91,0.00012899,2]
[339603648,1727730632654,-1984.91,0.00012899,2]
[339603650,1727730632666,-1984.91,0.00012899,2]
[339603652,1727730632677,-1984.91,0.00012899,2]
[339603654,1727730632687,-1984.91,0.00012899,2]
[339603656,1727730632698,-1984.91,0.00012899,2]
[339603658,1727730632708,-500.0,0.00012899,2]
[339603660,1727730632718,-1131.23090825,0.00012899,2]
[339603663,1727730632732,-853.67909175,0.00012899,2]
[339603665,1727730632743,-362.27,0.00012899,2]
[339603667,1727730632753,-1984.91,0.00012899,2]
[339603670,1727730632764,-1984.91,0.00012899,2]
[339603672,1727730632775,-1984.91,0.00012899,2]
[339603674,1727730632785,-1984.91,0.00012899,2]
[339603676,1727730632796,-1984.91,0.00012899,2]
[339603678,1727730632806,-52.50176649,0.00012899,2]
[339603680,1727730632819,-619.65174307,0.00012899,2]
[339603682,1727730632831,-1312.75649044,0.00012899,2]
[339603685,1727730632842,-1984.91,0.00012899,2]
[339603687,1727730632852,-1984.91,0.00012899,2]
[339603689,1727730632862,-1984.91,0.00012899,2]
[339603691,1727730632873,-1984.91,0.00012899,2]
[339603693,1727730632883,-615.06664969,0.00012899,2]
[339603695,1727730632895,-712.02367317,0.00012899,2]
[339603698,1727730632906,-603.91888408,0.00012899,2]
[339603700,1727730632918,-53.90079306,0.00012899,2]
[339603702,1727730632928,-687.06920694,0.00012899,2]
[339603755,1727730638015,-558.27971585,0.00012799,2]
[339603757,1727730638029,-358.48667185,0.00012799,2]
[339603759,1727730638042,-1583.2336123,0.00012799,2]
[339603760,1727730638053,-8843.84187007,0.00012899,2]
[339603761,1727730638065,-2525.61315927,0.00012899,2]
[339603762,1727730638077,-1297.84079306,0.00012899,2]
[339603763,1727730638088,-1984.91,0.00012899,2]
[339603764,1727730638099,-1959.77444767,0.00012899,2]
[339603765,1727730638112,-25.13555233,0.00012899,2]
[339603766,1727730638123,-1984.91,0.00012899,2]
[339603767,1727730638134,-1985.10137844,0.00012899,2]
[339603768,1727730638145,-919.13,0.00012899,2]
[339603769,1727730638157,-919.13,0.00012899,2]
[339603770,1727730638167,-919.13,0.00012899,2]
[339603771,1727730638177,-793.75686923,0.00012899,2]
[339603772,1727730638189,-125.37313077,0.00012899,2]
[339603773,1727730638200,-919.13,0.00012899,2]
[339603774,1727730638210,-919.13,0.00012899,2]
[339603775,1727730638220,-919.13,0.00012899,2]
[339603776,1727730638230,-919.13,0.00012899,2]
[339603777,1727730638240,-919.13,0.00012899,2]
[339603778,1727730638250,-919.13,0.00012899,2]
[339603779,1727730638261,-919.13,0.00012899,2]
[339603780,1727730638271,-919.13,0.00012899,2]
[339603781,1727730638285,-919.13,0.00012899,2]
[339603782,1727730638296,-919.13,0.00012899,2]
[339603783,1727730638307,-919.13,0.00012899,2]
[339603784,1727730638318,-919.13,0.00012899,2]
[339603785,1727730638328,-919.13,0.00012899,2]
[339603786,1727730638339,-919.13,0.00012899,2]
[339603787,1727730638348,-919.13,0.00012899,2]
[339603788,1727730638359,-919.13,0.00012899,2]
[339603789,1727730638370,-919.13,0.00012899,2]
[339603790,1727730638381,-919.13,0.00012899,2]
[339603791,1727730638392,-336.93757101,0.00012899,2]
[339603792,1727730638405,-582.23068741,0.00012899,2]
[339603794,1727730638415,-1422.23779259,0.000129,2]
[339603795,1727730638428,-18974.0009733,0.000129,2]
[339603796,1727730638441,-352.52727591,0.000129,2]
[339603797,1727730638453,-528.36153102,0.000129,2]
[339603798,1727730638466,-752.92921906,0.000129,2]
[339603800,1727730638478,-256.9894911,0.000129,2]
[339603801,1727730638492,-301.12664511,0.000129,2]
[339603806,1727730639874,-161908.57133952,0.000129,2]
[339603807,1727730639982,-300.59930483,0.000129,2]
[339603808,1727730640040,-605.45008,0.000129,2]
[339603809,1727730640099,-11953.20000001,0.000129,2]
[339603810,1727730640111,-8467.04682707,0.000129,2]
[339603811,1727730640155,-54278.41486008,0.000129,2]
[339603818,1727730642953,-483.05719049,0.000129,2]
[339603819,1727730642965,-8152.70451905,0.000129,2]
[339603820,1727730642978,-1700.6,0.000129,2]
[339603821,1727730643008,-43435.47158473,0.000129,2]
[339603822,1727730643018,-1254.28074747,0.000129,2]
[339603823,1727730643028,-18597.24766779,0.000129,2]
[339603824,1727730643065,-547.46957672,0.000129,2]
[339603825,1727730643077,-4330.59626476,0.000129,2]
[339603826,1727730643124,-1075.19585022,0.000129,2]
[339603827,1727730643136,-13190.16168377,0.000129,2]
[339603828,1727730643148,-760.21,0.000129,2]
[339603829,1727730643159,-387.22655324,0.000129,2]
[339603830,1727730643181,-427.149998,0.000129,2]
[339603831,1727730643193,-827.19049739,0.000129,2]
[339603832,1727730643205,-717.9,0.000129,2]
[339603833,1727730643239,-664228.64157393,0.000129,2]
[339603834,1727730643251,-715.43335499,0.000129,2]
[339603837,1727730645933,-1000.0,0.000129,2]
[339603838,1727730646151,-739.3446324,0.000129,2]
[339603839,1727730836875,291.06,9.887e-05,2]
[339603840,1727731544965,-36793.93430885,0.000101,2]
[339603841,1727731633017,170.92,9.096e-05,2]
[339603852,1727731814472,-165.15,0.00010959,2]
[339603853,1727731814494,-1050.0,0.00011,2]
[339603854,1727731814516,-2000.0,0.00011351,2]
[339603855,1727731814537,-5861.08,0.00011364,2]
[339603856,1727731814561,-250.0,0.00011368,2]
[339603857,1727731814582,-4345.02,0.00011368,2]
[339603858,1727731814604,-250.0,0.0001137,2]
[339603859,1727731814625,-78.75,0.0001137,2]
[339603860,1727731827811,-71.25,0.0001137,2]
[339603861,1727731827833,-450.0,0.00011374,2]
[339603862,1727731827857,-300.0,0.00011378,2]
[339603863,1727731827879,-499.99,0.00011378,2]
[339603864,1727731827901,-1000.0,0.00011379,2]
[339603865,1727731827923,-217.75,0.00011387,2]
[339603866,1727731827946,-2461.01,0.00011408,2]
[339603880,1727731832119,-165.87,0.00011408,2]
[339603881,1727731832128,-250.0,0.00011458,2]
[339603882,1727731832139,-188.4,0.00011483,2]
[339603883,1727731832149,-1087.43,0.00011486,2]
[339603884,1727731832158,-2479.17,0.00011517,2]
[339603885,1727731832168,-150.99,0.00011525,2]
[339603886,1727731832177,-150.0,0.00011589,2]
[339603887,1727731832187,-150.0,0.00011589,2]
[339603888,1727731832202,-150.0,0.00011589,2]
[339603889,1727731832211,-150.0,0.00011589,2]
[339603890,1727731832221,-150.0,0.00011589,2]
[339603891,1727731832230,-189.28,0.00011608,2]
[339603892,1727731832239,-189.28,0.00011666,2]
[339603893,1727731832249,-200.0,0.00011678,2]
[339603894,1727731832258,-166.83,0.00011749,2]
[339603895,1727731832268,-423.17,0.000118,2]
[339603896,1727731832277,-423.17,0.000118,2]
[339603897,1727731832286,-187.27,0.00012012,2]
[339603898,1727731832295,-254.62,0.00012073,2]
[339603899,1727731832304,-150.0,0.00012141,2]
[339603900,1727731832313,-754.1,0.00012141,2]
[339603901,1727731832322,-291.06,0.00012151,2]
[339603902,1727731832331,-199.047666,0.00012237,2]
[339603903,1727731832340,-152.632685,0.00012237,2]
[339603904,1727731832350,-156.11362,0.00012237,2]
[339603905,1727731832361,-194.471857,0.00012237,2]
[339603906,1727731832370,-199.047666,0.0001239,2]
[339603907,1727731832380,-193.4,0.00012445,2]
[339603908,1727731832389,-533.81,0.00012451,2]
[339603909,1727731832399,-533.81,0.00012451,2]
[339603910,1727731832408,-533.81,0.00012451,2]
[339603911,1727731832418,-533.81,0.00012451,2]
[339603912,1727731832429,-533.81,0.00012451,2]
[339603913,1727731832439,-533.81,0.00012451,2]
[339603915,1727731832450,-533.81,0.00012451,2]
[339603916,1727731832460,-533.81,0.00012451,2]
[339603918,1727731832469,-533.81,0.00012451,2]
[339603920,1727731832478,-533.81,0.00012451,2]
[339603922,1727731832488,-423.17,0.00012467,2]
[339603924,1727731832497,-423.17,0.00012467,2]
[339603926,1727731832506,-423.17,0.00012467,2]
[339603928,1727731832516,-423.17,0.00012467,2]
[339603930,1727731832526,-423.17,0.00012467,2]
[339603932,1727731832535,-846.25,0.00012467,2]
[339603934,1727731832544,-422.36,0.00012467,2]
[339603936,1727731832555,-608.389117,0.00012493,2]
[339603938,1727731832566,-608.389117,0.00012493,2]
[339603940,1727731832575,-608.389117,0.00012493,2]
[339603942,1727731832586,-608.389117,0.00012493,2]
[339603944,1727731832596,-420.0,0.00012498,2]
[339603946,1727731832606,-561.512,0.00012542,2]
[339603948,1727731832616,-199.047666,0.00012543,2]
[339603950,1727731832626,-194.471857,0.00012543,2]
[339603952,1727731832635,-1007.59633123,0.00012642,2]
[339603954,1727731832645,-1029.57867679,0.00012642,2]
[339603956,1727731832654,-170.24,0.00012672,2]
[339603958,1727731832663,-150.0,0.00012695,2]
[339603960,1727731832672,-1420.0,0.00012695,2]
[339603962,1727731832682,-1086.316,0.00012695,2]
[339603964,1727731832691,-933.0,0.00012695,2]
[339603966,1727731832702,-199.047666,0.00012696,2]
[339603968,1727731832711,-6243.2312,0.000127,2]
[339603969,1727731832722,-1915.15,0.000127,2]
[339603971,1727731832731,-15406.67,0.000127,2]
[339603973,1727731832741,-8265.25190193,0.000127,2]
[339603975,1727731832751,-1723.4823,0.000127,2]
[339603977,1727731832760,-459.14,0.00012769,2]
[339603979,1727731832770,-179.248,0.00012769,2]
[339603981,1727731832779,-500.0,0.00012771,2]
[339603983,1727731832789,-43680.0,0.00012771,2]
[339603985,1727731832798,-150.0,0.00012794,2]
[339603987,1727731832808,-150.0,0.00012795,2]
[339603989,1727731832818,-150.0,0.00012795,2]
[339603991,1727731832828,-150.0,0.00012796,2]
[339603993,1727731832838,-500.0,0.00012797,2]
[339603995,1727731832848,-150.0,0.00012797,2]
[339603996,1727731832857,-150.0,0.00012798,2]
[339603998,1727731832867,-252.38906609,0.00012799,2]
[339604000,1727731832877,-252.38906609,0.00012799,2]
[339604002,1727731832886,-252.38906609,0.00012799,2]
[339604003,1727731832895,-252.38906609,0.00012799,2]
[339604005,1727731832905,-252.38906609,0.000128,2]
[339604007,1727731832914,-252.38906609,0.000128,2]
[339604009,1727731832923,-480.2651,0.000128,2]
[339604010,1727731832932,-97318.1124,0.000128,2]
[339604012,1727731832942,-4907.4689,0.000128,2]
[339604014,1727731832951,-9501.0269,0.000128,2]
[339604016,1727731832960,-252.38906609,0.000128,2]
[339604017,1727731832969,-201.34185824,0.000128,2]
[339604019,1727731832979,-6768.1652,0.000128,2]
[339604021,1727731832988,-174.9184,0.000128,2]
[339604023,1727731832999,-2952.7526,0.000128,2]
[339604024,1727731833010,-1000.0,0.000128,2]
[339604026,1727731833020,-172.71481387,0.000128,2]
[339604028,1727731833030,-2916.7875,0.000128,2]
[339604030,1727731833039,-252.38906609,0.000128,2]
[339604032,1727731833049,-180.71,0.000128,2]
[339604033,1727731833059,-926.08055544,0.000128,2]
[339604035,1727731833069,-1215.0,0.000128,2]
[339604037,1727731833080,-1102.08305385,0.000128,2]
[339604039,1727731833090,-1000.0,0.00012801,2]
[339604041,1727731833100,-516.5994,0.00012835,2]
[339604042,1727731833109,-199.047666,0.00012849,2]
[339604044,1727731833119,-194.471857,0.00012849,2]
[339604046,1727731833128,-500.0,0.00012873,2]
[339604048,1727731833138,-502.72571637,0.00012876,2]
[339604049,1727731833148,-500.0,0.00012876,2]
[339604051,1727731833159,-500.0,0.00012876,2]
[339604053,1727731833169,-150.0,0.00012877,2]
[339604055,1727731833178,-162.26,0.0001289,2]
[339604057,1727731833188,-162.92436218,0.00012899,2]
[339604058,1727731833198,-190.90543175,0.00012899,2]
[339604060,1727731833208,-500.0,0.00012899,2]
[339604062,1727731833218,-500.0,0.00012899,2]
[339604064,1727731833228,-326.35,0.00012899,2]
[339604065,1727731833238,-500.0,0.00012899,2]
[339604067,1727731833248,-584.93823823,0.00012899,2]
[339604069,1727731833258,-564.06520356,0.00012899,2]
[339604071,1727731833268,-545.0,0.000129,2]
[339604073,1727731833278,-1003.42459798,0.000129,2]
[339604075,1727731833287,-169272.11555567,0.000129,2]
[339604077,1727731833300,-69105.87262194,0.000129,2]
[339604079,1727731833312,-305.50758067,0.000129,2]
[339604081,1727731833323,-54884.18423923,0.000129,2]
[339604083,1727731833334,-4221.79258543,0.000129,2]
[339604085,1727731833346,-3942.8523195,0.000129,2]
[339604087,1727731833358,-549.00973517,0.000129,2]
[339604089,1727731833369,-3603.53690901,0.000129,2]
[339604091,1727731833381,-5500.77126725,0.000129,2]
[339604093,1727731833392,-2497.50370162,0.000129,2]
[339604095,1727731833405,-7211.0,0.000129,2]
[339604097,1727731833424,-1181.26213134,0.000129,2]
[339604114,1727731833605,-536.83568415,0.000129,2]